Cogmind - Beta 16 @@@ ROGUE MODE // 2025.11.14 @ 16:57:57 Player: Velocity Result: Destroyed by G-34 Mercenary with Small Laser Performance ------------- Evolutions (1) 500 Regions Visited (3) 600 Robots Destroyed (35) 175 Value Destroyed (956) 956 Prototype IDs (5) 100 Alien Tech Used (0) 0 Bonus (0) 0 TOTAL SCORE: 2331 Bonus ------- None Cogmind --------- Core Integrity 0/400 Matter 300/300 Energy 280/280 System Corruption 0% Temperature Cool (6) Movement Core (1500) Ox29 Location -9/Materials Parts ------- > --- POWER (1) -------- Heavy Ion Engine > --- PROPULSION (3) --- Flight Unit > --- UTILITY (3) ------ Huge Storage Unit > --- WEAPON (2) ------- Small Laser > --- INVENTORY (25) --- Flight Unit Flight Unit Improved Terrain Scanner Heavy Assault Rifle EMP Blaster Hammer Peak State ------------ > --- POWER ------------ Ion Engine > --- PROPULSION ------- Compact Wheel Compact Wheel > --- UTILITY ---------- Small Storage Unit Decoy Drone Bay > --- WEAPON ----------- Small Laser Beam Cannon > --- INVENTORY -------- Light Nuclear Core Improved Heat Sink Improved Terrain Scanner Small Laser Rocket Launcher Hammer [Rating: 21] Favorites ----------- Power Ion Engine Engine Ion Engine Power Core Light Nuclear Core Propulsion Compact Wheel Treads Light Treads Leg Aluminum Leg Wheel Compact Wheel Flight Unit Flight Unit Utility Small Storage Unit Device Experimental Sensor Array Storage Small Storage Unit Weapon Small Laser Energy Gun Small Laser Energy Cannon Beam Cannon Ballistic Gun Light Assault Rifle Ballistic Cannon Improved Light Cannon Launcher Rocket Launcher Build | -11 -10 -10 -9 ------- Run | Yrd Mat Min Mat Slots Evolved 2 | . . . 2 Power . | . . . . Propulsion 1 | . . . 1 Utility 1 | . . . 1 Weapon . | . . . . Parts Attached 30 | 9 . 4 17 Power 5 | 2 . . 3 Engine 4 | 2 . . 2 Core 1 | . . . 1 Reactor . | . . . . Propulsion 9 | 2 . 2 5 Treads 2 | . . . 2 Leg 3 | 2 . . 1 Wheel 2 | . . 2 . Hover . | . . . . Flight 2 | . . . 2 Utility 6 | 2 . 1 3 Device 4 | 1 . 1 2 Storage 2 | 1 . . 1 Processor . | . . . . Hackware . | . . . . Protection . | . . . . Artifact . | . . . . Weapon 10 | 3 . 1 6 Energy Gun 5 | 3 . . 2 Energy Cannon 2 | . . 1 1 Ballistic Gun 1 | . . . 1 Ballistic Cannon 1 | . . . 1 Launcher 1 | . . . 1 Special Weapon . | . . . . Impact Weapon . | . . . . Slashing Weapon . | . . . . Piercing Weapon . | . . . . Special Melee Weapon . | . . . . Unidentified Prototypes 5 | . . 1 4 Parts Lost 16 | . 1 1 14 Power 2 | . . . 2 Propulsion 5 | . . . 5 Utility 4 | . . 1 3 Weapon 5 | . 1 . 4 Highest Loss Streak 4 | . 1 1 4 To Critical Strikes . | . . . . Average Backups 6 | 2 4 6 6 Power . | . 1 1 . Propulsion . | 1 2 . . Utility 1 | . . 2 1 Weapon 2 | . 1 2 3 Tool/Special . | . . . . Unused Backups 8 | . . 1 7 Power . | . . . . Propulsion 2 | . . . 2 Utility 1 | . . . 1 Weapon 5 | . . 1 4 Tool/Special . | . . . . Average Slot Usage (%) 86 | . 100 96 65 Engine 11 | . 14 14 5 Treads 2 | . . . 6 Leg 4 | . 28 3 1 Wheel 16 | . . 24 5 Flight 2 | . . . 7 Device 9 | . 14 10 5 Storage 12 | . 14 14 10 Energy Gun 14 | . 28 16 8 Energy Cannon 9 | . . 11 7 Peak Build Rating 21 | 7 7 17 21 Average Rating 12 | 5 6 13 11 On Entrance 7 | . 7 7 17 Avg Prop Armor Cover (%) 7 | . . . 7 Naked Turns . | . . . . Heaviest Build 93 | 15 15 15 93 Greatest Support 32 | 20 20 32 32 Greatest Overweight (x) 29 | 4 . . 29 Average Overweight (x) . | . . . . Largest Inventory Capacity 25 | 8 8 8 25 Average Capacity 9 | 7 8 8 11 Most Carried 8 | 4 5 8 8 Average Carried 6 | 3 4 7 6 Final Capacity 25 | 8 8 8 25 Final Carried 8 | 4 4 8 6 Class Distribution -------------------- 98% | Mutant Dominant Class ---------------- Mutant | -10/Materials Mutant | -10/Mines Mutant | -9/Materials Resources | -11 -10 -10 -9 ----------- Run | Yrd Mat Min Mat Matter Collected 720 | 217 75 53 375 Remotely . | . . . . Salvage Created 1000 | 17 75 185 723 Parts 62 | 4 3 6 49 Haulers Intercepted 1 | . . . 1 Recyclers Shooed . | . . . . Parts Field Recycled . | . . . . Retrieved Matter . | . . . . Parts Self-Destructed . | . . . . Prevented . | . . . . Parts Restored . | . . . . Kills | -11 -10 -10 -9 ------- Run | Yrd Mat Min Mat Combat Hostiles Destroyed 32 | . 1 5 26 Guns 15 | . 1 5 9 Cannons 9 | . . . 9 AOE 8 | . . . 8 Classes Destroyed 8 | 1 2 1 4 Tunneler 1 | 1 . . . Hauler 1 | . . . 1 Watcher 2 | . 1 . 1 Swarmer 10 | . . . 10 Grunt 17 | . 1 4 12 Brawler 1 | . . . 1 Sentry 3 | . . . 3 Assembled 1 | . . 1 . Best Kill Streak 8 | 1 2 2 8 Combat Bots Only 8 | . 1 2 8 Max Kills in Single Turn 2 | 1 1 1 2 Gunslinging . | . . . . Exploded 2 | . . . 2 Melee . | . . . . Uniques/NPCs Destroyed . | . . . . Combat | -11 -10 -10 -9 -------- Run | Yrd Mat Min Mat Hostile Shots Fired 253 | . 11 27 215 Missed 66 | . . 10 56 Hits 187 | . 11 17 159 Melee 1 | . . 1 . Projectile 186 | . 11 16 159 Critical Strikes 1 | . . . 1 Damage Taken 2096 | . 121 259 1716 Core 523 | . 10 105 408 Absorbed by Shields . | . . . . Core Remaining (%) 77 | 100 . 54 . Volleys Fired 78 | 1 12 13 52 Largest 2 | 2 2 2 2 Hottest 124 | 80 80 100 124 Shots Fired 143 | 2 21 26 94 Gun 81 | 2 21 24 34 Cannon 50 | . . 2 48 Launcher 12 | . . . 12 Special . | . . . . Kinetic 8 | . . . 8 Thermal 93 | . 4 15 74 Explosive 12 | . . . 12 Electromagnetic 30 | 2 17 11 . Robot Hit Streak 11 | 1 4 7 11 Robot Miss Streak 2 | . 2 2 2 Penetration Max . | . . . . Secondary Targets 1 | . . 1 . Max Gunslinging Chain 1 | . . 1 . Shots Hit Robots 91 | 1 12 19 59 Core Hits 53 | 1 3 11 38 Critical Kills . | . . . . Critical Parts Destroyed . | . . . . Critical Strikes . | . . . . Melee Attacks . | . . . . Impact . | . . . . Slashing . | . . . . Piercing . | . . . . Sneak Attacks . | . . . . Combat Hostiles . | . . . . Follow-up Attacks . | . . . . Damage Inflicted 2324 | 13 202 288 1821 Guns 714 | 13 158 247 296 Cannons 623 | . . . 623 Explosions 967 | . 44 33 890 Melee . | . . . . Ramming 20 | . . 8 12 Kinetic 101 | . . . 101 Thermal 1029 | . 66 145 818 Explosive 890 | . . . 890 Electromagnetic 284 | 13 136 135 . Impact . | . . . . Slashing . | . . . . Piercing . | . . . . Highest Corruption . | . . . . Average Corruption . | . . . . Corruption Purged . | . . . . Corruption Blocked . | . . . . Overload Shots . | . . . . Overflow Damage 37 | . . . 37 Projectiles . | . . . . Explosions 37 | . . . 37 Melee . | . . . . Knockbacks . | . . . . Impact . | . . . . Kinetic . | . . . . Secondary . | . . . . Self-Inflicted Damage 86 | . . 35 51 Shots 4 | . . 1 3 Rammed 3 | . . . 3 Targets Rammed 8 | . . 2 6 Kicked 5 | . . 2 3 Crushed . | . . . . Highest Temperature 384 | 18 154 174 384 Average Temperature 76 | 12 89 67 77 Received Heat Transfer 773 | . 66 110 597 Effects 2 | . . . 2 Shutdowns 1 | . . . 1 Damage (minor) 1 | . . . 1 Siege Activations . | . . . . Martial Activations . | . . . . Shielding Activations . | . . . . Robots Disrupted . | . . . . Combat Hostiles . | . . . . Robots Corrupted . | . . . . Combat Hostiles . | . . . . Parts Fried 1 | . 1 . . Impact Corruptions . | . . . . Robots Melted . | . . . . Combat Hostiles . | . . . . Parts Melted 3 | . . . 3 Heat Transferred 2042 | . 50 350 1642 Parts Sabotaged . | . . . . Parts Stolen . | . . . . Parts Stripped . | . . . . Power Chain Reactions 2 | . 1 1 . Alert | -11 -10 -10 -9 ------- Run | Yrd Mat Min Mat Maximum Alert Level 1 | . . . 1 Low Security (%) 70 | 100 100 100 9 Level 1 29 | . . . 90 Level 2 . | . . . . Level 3 . | . . . . Level 4 . | . . . . Level 5 . | . . . . High Security . | . . . . Max Security . | . . . . Peak Influence 393 | 5 45 59 393 Initial 5 | . . 5 . Average 96 | 1 11 3 289 Influence Increases 983 | 5 60 119 799 Destroy 0b10 Robot/C 620 | . 20 80 520 Destroy 0b10 Robot/NC 20 | 5 5 . 10 Destroy Leader 116 | . 2 20 94 Disable Machine 60 | . 15 . 45 Destroy Structure 47 | . 3 4 40 Lose Combat Pursuer 120 | . 15 15 90 Influence Decreases 686 | 5 45 134 502 Entered New Map 10 | . . 10 . Time Decay 521 | 5 40 114 362 Lost Part 155 | . 5 10 140 Squads Dispatched 4 | . . . 4 Investigation 2 | . . . 2 Extermination . | . . . . Reinforcement 2 | . . . 2 Assault . | . . . . Garrison . | . . . . Intercept . | . . . . Searches Triggered . | . . . . Construction Impeded . | . . . . Haulers Reinforced . | . . . . Active Scanning Responses . | . . . . Cargo Convoy Interrupts . | . . . . Stealth | -11 -10 -10 -9 --------- Run | Yrd Mat Min Mat Distress Signals 6 | . 1 1 4 Communications Jammed . | . . . . Distress Signals . | . . . . Times Spotted 55 | . 3 9 43 Peak Tracking Total 9 | . 2 2 9 Tactical Retreats 7 | . 1 2 4 Traps | -11 -10 -10 -9 ------- Run | Yrd Mat Min Mat Traps Triggered 6 | . . . 6 Indirectly . | . . . . Trap Hack Attempts . | . . . . Triggered . | . . . . Disarmed . | . . . . Reprogrammed . | . . . . Reused . | . . . . Traps Extracted . | . . . . Installed . | . . . . Triggered . | . . . . Machines | -11 -10 -10 -9 ---------- Run | Yrd Mat Min Mat Machines Disabled 4 | . 1 . 3 Max in Single Turn 1 | . 1 . 1 Machines Repaired . | . . . . Machines Dismantled . | . . . . Machines Sabotaged . | . . . . Overloaded Fab Kills . | . . . . Hacking | -11 -10 -10 -9 --------- Run | Yrd Mat Min Mat Machines Accessed 4 | . 2 1 1 Terminals 2 | . 2 . . Fabricators . | . . . . Repair Stations . | . . . . Recycling Units 1 | . . . 1 Scanalyzers . | . . . . Garrison Access . | . . . . Total Hacks 6 | . 4 1 1 Successful 2 | . . 1 1 Failed 4 | . 4 . . Catastrophic 1 | . 1 . . Database Lockouts . | . . . . Manual . | . . . . Terminals 4 | . 4 . . Fabricators . | . . . . Repair Stations . | . . . . Recycling Units 1 | . . . 1 Scanalyzers . | . . . . Garrison Access . | . . . . Terminal Hacks 1 | . . 1 . Open Door 1 | . . 1 . Fabricator Hacks . | . . . . Repair Station Hacks . | . . . . Recycling Unit Hacks 1 | . . . 1 Retrieve Components 1 | . . . 1 Scanalyzer . | . . . . Garrison Access Hacks . | . . . . Unauthorized Hacks . | . . . . Terminals . | . . . . Fabricators . | . . . . Repair Stations . | . . . . Recycling Units . | . . . . Scanalyzers . | . . . . Garrison Access . | . . . . Data Cores Recovered . | . . . . Used . | . . . . Hacking Detections 2 | . 2 . . Full Trace Events . | . . . . Feedback Events . | . . . . Feedback Blocked . | . . . . Robot Schematics Acquired . | . . . . Robots Built . | . . . . Authchips . | . . . . Time . | . . . . Total Robot Build Rating . | . . . . Part Schematics Acquired . | . . . . Parts Built . | . . . . Authchips . | . . . . Time . | . . . . Total Part Build Rating . | . . . . Part Studies Acquired . | . . . . Parts Repaired . | . . . . Time . | . . . . Parts Recycled . | . . . . Recycled Matter . | . . . . Retrieved Matter . | . . . . Retrieved Components 10 | . . . 10 Parts Scanalyzed . | . . . . Part Schematics Acquired . | . . . . Parts Damaged . | . . . . Bothacking | -11 -10 -10 -9 ------------ Run | Yrd Mat Min Mat Used RIF Installer . | . . . . Robots Hacked . | . . . . Non-combat . | . . . . Combat . | . . . . Robot Hacks Applied . | . . . . Relay Couplers Released . | . . . . Fabnet Peak Effective % . | . . . . Robots Rewired . | . . . . Allies Hacked . | . . . . Hacks Repelled . | . . . . Allies | -11 -10 -10 -9 -------- Run | Yrd Mat Min Mat Total Allies 1 | . . 1 . Largest Group 1 | . . 1 . Highest-Rated Group 31 | . . 31 . Highest-Rated Ally 31 | . . 31 . Total Orders . | . . . . Ally Attacks . | . . . . Total Damage . | . . . . Kills . | . . . . Allies Corrupted . | . . . . Allies Melted . | . . . . Intel | -11 -10 -10 -9 ------- Run | Yrd Mat Min Mat Active Infowar (turns) 1555 | 31 179 1253 92 Sensors 1142 | . . 1050 92 Seismic 413 | 31 179 203 . Robot Analysis Total . | . . . . Derelict Logs Recovered 3 | . . 3 . Drone Launches . | . . . . Drone Recoveries . | . . . . Exploration | -11 -10 -10 -9 ------------- Run | Yrd Mat Min Mat Turns Passed 2885 | 79 179 1697 930 Spaces Moved 1020 | 51 121 429 419 Core 31 | 16 . . 15 Treads 199 | . . . 199 Legs 302 | 35 121 119 27 Wheels 488 | . . 310 178 Hover . | . . . . Flight . | . . . . Fastest Speed 50 | 50 120 100 100 Average Speed 134 | 118 120 105 169 Slowest Speed 1500 | 250 120 120 1500 Overloaded Moves . | . . . . Propulsion Burnouts . | . . . . Robots Hopped . | . . . . Potential Cave-ins . | . . . . Cave-ins Triggered . | . . . . Exploration Rate (%) 36 | 3 31 71 41 Regions Visited 3 Branch Regions 1 Pre-discovered Areas 2 | . . 2 . Known Exits Taken 1 | . . 1 . Unknown Exits Taken 2 | 1 1 . . Scrap Searched 3 | . . 3 . Spaces Dug . | . . . . Terrain Destroyed 54 | . 2 4 48 Melee . | . . . . Projectile . | . . . . AOE 54 | . 2 4 48 Terrain Rammed . | . . . . Walls Destroyed . | . . . . Machines Disabled . | . . . . Actions | -11 -10 -10 -9 --------- Run | Yrd Mat Min Mat Total 2388 | 64 134 1647 543 Wait 1208 | . . 1186 22 Move 1017 | 50 120 428 419 Hop . | . . . . Pick Up 20 | 3 1 7 9 Fast Attach 27 | 7 . 2 18 Attach 11 | 1 1 1 8 Detach 3 | 1 . 1 1 Swap 4 | 1 . 2 1 Drop 12 | . . 5 7 Fire 78 | 1 12 13 52 Melee . | . . . . Ram . | . . . . Kick 5 | . . 2 3 Crush 3 | . . . 3 Escape Stasis . | . . . . Rewire . | . . . . Trap . | . . . . Miscellaneous . | . . . . Route ------- -11/Scrapyard -10/Materials -10/Mines -9/Materials (discovered 1 exit: [*Mat]) History --------- Turn | Location | Event 31 | -11/Scrapyard | Discovered new exit (range 14) 80 | -11/Scrapyard | Entered Materials 233 | -10/Materials | Discovered new exit (range 16) 259 | -10/Materials | Entered Mines 280 | -10/Mines | Learned location of Storage (-9) 284 | -10/Mines | Received a Rocket Launcher from a helpful Derelict 303 | -10/Mines | Identified exit to Materials 313 | -10/Mines | Build established: Mutant 330 | -10/Mines | Learned location of Mines (-9) 345 | -10/Mines | Found the Drone Emporium 349 | -10/Mines | Found Prototype Device 557 | -10/Mines | Found a damaged Exp. Sensor Array with a note attached 559 | -10/Mines | Found Prototype Device 559 | -10/Mines | Identified Exp. Sensor Array 594 | -10/Mines | Received a Mining Laser from a helpful Derelict 618 | -10/Mines | Deemed a non-threat by the Exiles lab entrance 674 | -10/Mines | Assembled infested the area 679 | -10/Mines | Assisted by a Guerilla fighting off Assembled 1956 | -10/Mines | Entered Materials 1956 | -9/Materials | Evolved 2 slots: Propulsion x1, Utility x1 1957 | -9/Materials | Identified Decoy Drone Bay 2086 | -9/Materials | Destroyed 8 combat bots 2117 | -9/Materials | Discovered new exit (range 7) 2232 | -9/Materials | Lost 4 parts (1p2n1w) 2343 | -9/Materials | Core integrity fell below 50% 2643 | -9/Materials | Core integrity fell below 20% 2670 | -9/Materials | Lost 3 parts (1u2w) 2886 | -9/Materials | Destroyed by G-34 Mercenary with Small Laser Last Messages --------------- 02708_ R-06 Scavenger collects Lgt. Treads. 02711_ K-01 Serf collects debris. 02712_ R-06 Scavenger collects Heat Sink. 02713_ Acquired Flight Unit. 02714_ Acquired 10 matter. 02714_ K-01 Serf collects debris. 02715_ R-06 Scavenger collects Beam Rifle. 02718_ K-01 Serf collects debris. 02720_ R-06 Scavenger collects Lgt. Treads. 02730_ R-06 Scavenger collects Heat Sink. 02834_ Triggered Alarm Trap. 02834_ An alarm sounds. 02834_ ALERT: Alarm triggered, dispatching investigation squad. 02845_ U-05 Engineer lays Concrete. 02851_ W-16 Scout sends out distress signal. 02870_ Slammed into G-34 Mercenary. 02875_ Flight Unit destroyed. 02883_ Imp. Light Cannon destroyed. 02883_ Lgt. Treads destroyed. Map ----- +----------------------------------------------------+ | %"% #?????????????? | | ^ # #?????????????? | | #### ###########%#####+#### #?????????????? | | ???# #?????? # #?# # #?????????????? | | #### #???? "" # #?#!!! # #?????????????? | | %+ #?? T" # #?#!!! # #?????????????? | | " # # !! "" # #?#! ! # ! #?????????????? | | "" # + !! # #?# ########?????????????? | | "" + # [ # #?# ! #????????????????????? | | "" ## ##?? #%###% #????????????????????? | | " ## #????? # %+% #????????????????????? | | ## #???????## # ### % #????????????????????? | | ## #??????????# #?#%= #????????????????????? | | /## #??????????# #?# #????????????????????? | | ##### #?####?????# #?# #????????????????????? | | ????# #?# #### #?#| #????????????????????? | | ????# #?# #?###### ########?????????????? | | ????# #?# ########## #?????????????? | | ????? ??# + #?????????????? | | ????? ??# ########## # #?????????????? | | ?????/??## ???????# # #?????????????? | | ????? ???# ????????# T # ]| #?????????????? | | ?????????+ ?????????# ### # || #?????????????? | | ?????????#??????????##/####k########?????????????? | | ????????????????????# gs ss ??????????? | | ????????????????????# @# ####?????????????????? | | ????????????????????# # #????????????????????? | | ????????????????????# # #????????????????????? | | ????????????????????# ! # #????????????????????? | | ????????????????????# # ?????????????????????? | | ????????????????????# # ?????????????????????? | | ????????????????????####### ?????????????????????? | | ??????????????????????????? ?????????????????????? | | ??????????????????????????? ?????????????????????? | | ??????????????????????????? ?????????????????????? | | ?????????????????????????????????????????????????? | | ?????????????????????????????????????????????????? | | ?????????????????????????????????????????????????? | | ?????????????????????????????????????????????????? | | ?????????????????????????????????????????????????? | | ?????????????????????????????????????????????????? | | ?????????????????????????????????????????????????? | | ?????????????????????????????????????????????????? | | ?????????????????????????????????????????????????? | | ?????????????????????????????????????????????????? | | ?????????????????????????????????????????????????? | | ?????????????????????????????????????????????????? | | ?????????????????????????????????????????????????? | | ?????????????????????????????????????????????????? | | ?????????????????????????????????????????????????? | +----------------------------------------------------+ Best States ------------- Heat Dissipation 42 Energy Generation 14 Energy Capacity 280 Matter Stores 300 Matter Capacity 300 Sight Range 16 Robot Scan Range 20 Terrain Scan Density 10 Evasion (%) 55 Recoil Reduction 1 Item Schematics ----------------- None Robot Schematics ------------------ None Fabricated ------------ Nothing Repaired ---------- Nothing Studied --------- None Alien Tech Used ----------------- None Achievements -------------- None Challenges ------------ None Game ------ Seed MasterBombardmentRail Manual? 0 Play Time 00:21:48 Cumulative 31.0 hours Start 2025.11.14 @ 16:21:32 End 2025.11.14 @ 16:57:57 Sessions 1 Manual Loads 0 Difficulty Rogue Special Mode None Game No. 20 Rogue 14 Adventurer 5 Explorer 1 Win Type - Total 1 Types 1/0/0/0/0/0/0/0/0/0 Lore% 19 Gallery% 43 Achievement% 27 Wizard Run 0 Options --------- Layout 2 ASCII 0 Keyboard 0 Movement Mouse Keybinds 0 Fullscreen 2 Font 24/Smallcaps Map View 50x44 Zoom Use 0% Tactical HUD 1 Map Filters NONE Filters NONE Steam 1 RUN: 1e538277-03dc-4ed8-b4d4-663b3f13b008